[Event "Titled Tuesday Blitz January 17 Late 2023"]
[White "Souza, Gustavo Horokoski De"]
[Black "Mayaud, Raphael"]
[WhiteFideId "2146584"]
[BlackFideId "627151"]
[WhiteElo "1943"]
[BlackElo "2201"]
[Result "1-0"]
[Round "03"]
[TimeControl "180+2"]
[Date "2023.01.17"]
[WhiteClock "0:01:46"]
[BlackClock "0:00:59"]

1. d4 {[%clk 0:02:56]}  d5 {[%clk 0:02:57]} 2. c4 {[%clk 0:02:56]}  Nf6 {[%clk 0:02:54]} 3. Nf3 {[%clk 0:02:53]}  c6 {[%clk 0:02:48]} 4. Nc3 {[%clk 0:02:48]}  e6 {[%clk 0:02:46]} 5. Bg5 {[%clk 0:02:46]}  Bd6 {[%clk 0:02:44]} 6. e4 {[%clk 0:02:37]}  O-O {[%clk 0:02:23]} 7. e5 {[%clk 0:02:35]}  Bb4 {[%clk 0:02:18]} 8. exf6 {[%clk 0:02:32]}  gxf6 {[%clk 0:02:15]} 9. Bh6 {[%clk 0:02:28]}  Nd7 {[%clk 0:02:08]} 10. Bxf8 {[%clk 0:02:25]}  Qxf8 {[%clk 0:02:07]} 11. Bd3 {[%clk 0:02:18]}  Bxc3+ {[%clk 0:01:56]} 12. bxc3 {[%clk 0:02:17]}  b5 {[%clk 0:01:51]} 13. cxb5 {[%clk 0:02:16]}  cxb5 {[%clk 0:01:48]} 14. Bxb5 {[%clk 0:02:16]}  Qh6 {[%clk 0:01:44]} 15. Qd2 {[%clk 0:02:06]}  Qxd2+ {[%clk 0:01:35]} 16. Kxd2 {[%clk 0:02:06]}  Rb8 {[%clk 0:01:29]} 17. Bxd7 {[%clk 0:02:05]}  Bxd7 {[%clk 0:01:28]} 18. Rab1 {[%clk 0:02:04]}  Bb5 {[%clk 0:01:27]} 19. a4 {[%clk 0:02:03]}  Bxa4 {[%clk 0:01:25]} 20. Rxb8+ {[%clk 0:02:03]}  Kg7 {[%clk 0:01:20]} 21. Ra1 {[%clk 0:02:02]}  Bc6 {[%clk 0:01:13]} 22. Rxa7 {[%clk 0:02:02]}  e5 {[%clk 0:01:11]} 23. dxe5 {[%clk 0:02:01]}  fxe5 {[%clk 0:01:09]} 24. Nxe5 {[%clk 0:02:02]}  Kf6 {[%clk 0:01:05]} 25. Nxc6 {[%clk 0:02:00]}  h5 {[%clk 0:01:04]} 26. h4 {[%clk 0:01:58]}  Kf5 {[%clk 0:01:02]} 27. Nd4+ {[%clk 0:01:57]}  Kg4 {[%clk 0:01:01]} 28. Rxf7 {[%clk 0:01:55]}  Kxh4 {[%clk 0:01:00]} 29. Nf3+ {[%clk 0:01:45]}  Kg4 {[%clk 0:00:59]} 30. Rg8# {[%clk 0:01:46]} 1-0


[Site "https://www.chess.com"]

[Event "Titled Tuesday Blitz January 17 Late 2023"]
[White "Hoffmann, Asa"]
[Black "Bongo Akanga Ndjila, Barthelemy"]
[WhiteFideId "2001470"]
[BlackFideId "10609431"]
[WhiteElo "2185"]
[BlackElo "1824"]
[Result "1-0"]
[Round "03"]
[TimeControl "180+2"]
[Date "2023.01.17"]
[WhiteClock "0:01:08"]
[BlackClock "0:01:06"]

1. d4 {[%clk 0:02:56]}  d5 {[%clk 0:02:58]} 2. Bg5 {[%clk 0:02:55]}  Nf6 {[%clk 0:02:48]} 3. Nd2 {[%clk 0:02:54]}  e6 {[%clk 0:02:46]} 4. e3 {[%clk 0:02:53]}  Be7 {[%clk 0:02:46]} 5. Bd3 {[%clk 0:02:53]}  O-O {[%clk 0:02:46]} 6. f4 {[%clk 0:02:53]}  c5 {[%clk 0:02:40]} 7. c3 {[%clk 0:02:53]}  cxd4 {[%clk 0:02:38]} 8. exd4 {[%clk 0:02:52]}  Nc6 {[%clk 0:02:38]} 9. Ngf3 {[%clk 0:02:52]}  b6 {[%clk 0:02:37]} 10. O-O {[%clk 0:02:51]}  a5 {[%clk 0:02:35]} 11. Ne5 {[%clk 0:02:50]}  Bb7 {[%clk 0:02:29]} 12. Qf3 {[%clk 0:02:44]}  h6 {[%clk 0:02:28]} 13. Bh4 {[%clk 0:02:42]}  Qc7 {[%clk 0:02:21]} 14. Rae1 {[%clk 0:02:38]}  Ba6 {[%clk 0:02:21]} 15. Bxa6 {[%clk 0:02:35]}  Rxa6 {[%clk 0:02:22]} 16. f5 {[%clk 0:02:34]}  Nxe5 {[%clk 0:02:13]} 17. dxe5 {[%clk 0:02:32]}  Nh7 {[%clk 0:02:14]} 18. f6 {[%clk 0:02:30]}  gxf6 {[%clk 0:01:59]} 19. exf6 {[%clk 0:02:14]}  Bc5+ {[%clk 0:01:47]} 20. Kh1 {[%clk 0:02:14]}  Kh8 {[%clk 0:01:46]} 21. Qh5 {[%clk 0:02:07]}  Rg8 {[%clk 0:01:43]} 22. Nf3 {[%clk 0:01:55]}  Bd6 {[%clk 0:01:36]} 23. Qxh6 {[%clk 0:01:42]}  Rg6 {[%clk 0:01:33]} 24. Qh5 {[%clk 0:01:41]}  Ra8 {[%clk 0:01:33]} 25. Ng5 {[%clk 0:01:39]}  Rxg5 {[%clk 0:01:14]} 26. Bxg5 {[%clk 0:01:39]}  Rg8 {[%clk 0:01:13]} 27. Bh6 {[%clk 0:01:39]}  Rg6 {[%clk 0:01:13]} 28. Bg7+ {[%clk 0:01:33]}  Kg8 {[%clk 0:01:13]} 29. Re3 {[%clk 0:01:22]}  d4 {[%clk 0:01:11]} 30. Qxh7+ {[%clk 0:01:10]}  Kxh7 {[%clk 0:01:07]} 31. Rh3+ {[%clk 0:01:09]}  Rh6 {[%clk 0:01:07]} 32. Rxh6+ {[%clk 0:01:09]}  Kg8 {[%clk 0:01:06]} 33. Rh8# {[%clk 0:01:08]} 1-0


[Site "https://www.chess.com"]

[Event "Titled Tuesday Blitz January 17 Late 2023"]
[White "Arbunic Castro, Giovanna"]
[Black "Smith, Garrett L"]
[WhiteFideId "3400549"]
[BlackFideId "2024829"]
[WhiteElo "1930"]
[BlackElo "2047"]
[Result "0-1"]
[Round "03"]
[TimeControl "180+2"]
[Date "2023.01.17"]
[WhiteClock "0:00:11"]
[BlackClock "0:00:21"]

1. e4 {[%clk 0:03:00]}  c5 {[%clk 0:03:00]} 2. g3 {[%clk 0:02:59]}  d5 {[%clk 0:02:59]} 3. exd5 {[%clk 0:02:58]}  Qxd5 {[%clk 0:02:59]} 4. Nf3 {[%clk 0:02:58]}  Bg4 {[%clk 0:02:59]} 5. Bg2 {[%clk 0:02:58]}  Qe6+ {[%clk 0:02:58]} 6. Kf1 {[%clk 0:02:57]}  Nc6 {[%clk 0:02:58]} 7. h3 {[%clk 0:02:57]}  Bh5 {[%clk 0:02:57]} 8. g4 {[%clk 0:02:57]}  Bg6 {[%clk 0:02:56]} 9. Nc3 {[%clk 0:02:55]}  Nf6 {[%clk 0:02:47]} 10. d3 {[%clk 0:02:54]}  Qd7 {[%clk 0:02:41]} 11. Be3 {[%clk 0:02:52]}  e6 {[%clk 0:02:40]} 12. Bf4 {[%clk 0:02:43]}  Be7 {[%clk 0:02:26]} 13. Ne5 {[%clk 0:02:37]}  Nxe5 {[%clk 0:02:26]} 14. Bxe5 {[%clk 0:02:36]}  O-O {[%clk 0:02:22]} 15. Qf3 {[%clk 0:02:35]}  b5 {[%clk 0:02:03]} 16. Qxa8 {[%clk 0:02:12]}  Rxa8 {[%clk 0:02:02]} 17. Bxa8 {[%clk 0:02:11]}  c4 {[%clk 0:01:47]} 18. d4 {[%clk 0:02:08]}  Bxc2 {[%clk 0:01:45]} 19. Kg2 {[%clk 0:02:01]}  b4 {[%clk 0:01:43]} 20. Ne2 {[%clk 0:01:42]}  h5 {[%clk 0:01:24]} 21. gxh5 {[%clk 0:01:26]}  Nd5 {[%clk 0:01:21]} 22. Rac1 {[%clk 0:01:22]}  Be4+ {[%clk 0:01:17]} 23. f3 {[%clk 0:01:20]}  Ne3+ {[%clk 0:01:10]} 24. Kf2 {[%clk 0:01:17]}  Bxa8 {[%clk 0:01:01]} 25. Kxe3 {[%clk 0:01:15]}  Bg5+ {[%clk 0:01:00]} 26. f4 {[%clk 0:01:13]}  Bxh1 {[%clk 0:00:58]} 27. Rxh1 {[%clk 0:01:11]}  Bf6 {[%clk 0:00:56]} 28. Bxf6 {[%clk 0:01:00]}  gxf6 {[%clk 0:00:56]} 29. Rg1+ {[%clk 0:01:00]}  Kh7 {[%clk 0:00:56]} 30. Ng3 {[%clk 0:00:59]}  f5 {[%clk 0:00:44]} 31. Nf1 {[%clk 0:00:40]}  c3 {[%clk 0:00:39]} 32. bxc3 {[%clk 0:00:38]}  bxc3 {[%clk 0:00:40]} 33. Kd3 {[%clk 0:00:38]}  c2 {[%clk 0:00:33]} 34. Nh2 {[%clk 0:00:31]}  Qa4 {[%clk 0:00:29]} 35. Nf3 {[%clk 0:00:20]}  Qa3+ {[%clk 0:00:28]} 36. Ke2 {[%clk 0:00:19]}  c1=N+ {[%clk 0:00:24]} 37. Kf2 {[%clk 0:00:13]}  Nd3+ {[%clk 0:00:24]} 38. Ke3 {[%clk 0:00:11]}  Ne5+ {[%clk 0:00:21]} 0-1


[Site "https://www.chess.com"]

[Event "Titled Tuesday Blitz January 17 Late 2023"]
[White "Pichot, Alan"]
[Black "Nakamura, Hikaru"]
[WhiteFideId "110973"]
[BlackFideId "2016192"]
[WhiteElo "2638"]
[BlackElo "2775"]
[Result "0-1"]
[Round "04"]
[TimeControl "180+2"]
[Date "2023.01.17"]
[WhiteClock "0:00:02"]
[BlackClock "0:00:57"]

1. e4 {[%clk 0:03:00]}  e5 {[%clk 0:02:58]} 2. Nf3 {[%clk 0:03:01]}  Nc6 {[%clk 0:02:59]} 3. Bb5 {[%clk 0:03:01]}  g6 {[%clk 0:02:53]} 4. c3 {[%clk 0:02:45]}  a6 {[%clk 0:02:52]} 5. Ba4 {[%clk 0:02:45]}  Bg7 {[%clk 0:02:52]} 6. O-O {[%clk 0:02:44]}  b5 {[%clk 0:02:52]} 7. Bb3 {[%clk 0:02:42]}  Nge7 {[%clk 0:02:51]} 8. d4 {[%clk 0:02:42]}  exd4 {[%clk 0:02:51]} 9. cxd4 {[%clk 0:02:42]}  d6 {[%clk 0:02:51]} 10. h3 {[%clk 0:02:41]}  O-O {[%clk 0:02:51]} 11. Re1 {[%clk 0:02:40]}  Na5 {[%clk 0:02:51]} 12. Bc2 {[%clk 0:02:40]}  c5 {[%clk 0:02:51]} 13. a4 {[%clk 0:02:36]}  Bb7 {[%clk 0:02:43]} 14. Nc3 {[%clk 0:02:12]}  cxd4 {[%clk 0:02:37]} 15. Nxd4 {[%clk 0:02:11]}  b4 {[%clk 0:02:38]} 16. Nce2 {[%clk 0:02:10]}  Nec6 {[%clk 0:02:38]} 17. Rb1 {[%clk 0:01:45]}  d5 {[%clk 0:02:18]} 18. Nxc6 {[%clk 0:01:29]}  Bxc6 {[%clk 0:02:19]} 19. e5 {[%clk 0:01:25]}  Bxe5 {[%clk 0:02:19]} 20. Nd4 {[%clk 0:01:25]}  Bg7 {[%clk 0:02:19]} 21. Nxc6 {[%clk 0:01:18]}  Nxc6 {[%clk 0:02:20]} 22. Bb3 {[%clk 0:01:05]}  Nd4 {[%clk 0:02:09]} 23. Be3 {[%clk 0:01:05]}  Nxb3 {[%clk 0:02:08]} 24. Qxb3 {[%clk 0:01:06]}  Qd6 {[%clk 0:02:06]} 25. Rbd1 {[%clk 0:01:04]}  Rfd8 {[%clk 0:02:06]} 26. Rd3 {[%clk 0:00:45]}  d4 {[%clk 0:01:48]} 27. Red1 {[%clk 0:00:36]}  Qc5 {[%clk 0:01:43]} 28. Rc1 {[%clk 0:00:32]}  Qf5 {[%clk 0:01:37]} 29. Bd2 {[%clk 0:00:31]}  a5 {[%clk 0:01:37]} 30. Rc7 {[%clk 0:00:29]}  Rd7 {[%clk 0:01:32]} 31. Rf3 {[%clk 0:00:18]}  Qb1+ {[%clk 0:01:24]} 32. Rc1 {[%clk 0:00:16]}  Qe4 {[%clk 0:01:24]} 33. Re1 {[%clk 0:00:14]}  Qc6 {[%clk 0:01:22]} 34. Rc1 {[%clk 0:00:11]}  Qe4 {[%clk 0:01:21]} 35. Re1 {[%clk 0:00:11]}  Qd5 {[%clk 0:01:21]} 36. Qxd5 {[%clk 0:00:11]}  Rxd5 {[%clk 0:01:22]} 37. Re7 {[%clk 0:00:11]}  d3 {[%clk 0:01:19]} 38. Rfxf7 {[%clk 0:00:08]}  Bxb2 {[%clk 0:01:18]} 39. Rxh7 {[%clk 0:00:05]}  Bf6 {[%clk 0:01:17]} 40. Rb7 {[%clk 0:00:04]}  Rd6 {[%clk 0:01:04]} 41. Rhf7 {[%clk 0:00:04]}  Rf8 {[%clk 0:01:02]} 42. Rxf8+ {[%clk 0:00:01]}  Kxf8 {[%clk 0:01:02]} 43. Kf1 {[%clk 0:00:02]}  Bc3 {[%clk 0:00:58]} 44. Ke1 {[%clk 0:00:03]}  Re6+ {[%clk 0:00:58]} 45. Kd1 {[%clk 0:00:03]}  Re2 {[%clk 0:00:59]} 46. Be3 {[%clk 0:00:02]}  Ra2 {[%clk 0:00:59]} 47. Rd7 {[%clk 0:00:02]}  Ra1+ {[%clk 0:00:58]} 48. Bc1 {[%clk 0:00:02]}  d2 {[%clk 0:00:57]} 0-1


[Site "https://www.chess.com"]

[Event "Titled Tuesday Blitz January 17 Late 2023"]
[White "Andreikin, Dmitry"]
[Black "Galperin, Platon"]
[WhiteFideId "4158814"]
[BlackFideId "14165414"]
[WhiteElo "2729"]
[BlackElo "2528"]
[Result "1-0"]
[Round "04"]
[TimeControl "180+2"]
[Date "2023.01.17"]
[WhiteClock "0:00:43"]
[BlackClock "0:00:02"]

1. Nf3 {[%clk 0:03:00]}  Nf6 {[%clk 0:02:58]} 2. c4 {[%clk 0:03:00]}  g6 {[%clk 0:02:59]} 3. b4 {[%clk 0:03:00]}  Bg7 {[%clk 0:02:55]} 4. Bb2 {[%clk 0:03:00]}  Nc6 {[%clk 0:02:53]} 5. a3 {[%clk 0:02:58]}  O-O {[%clk 0:02:52]} 6. g3 {[%clk 0:02:52]}  e5 {[%clk 0:02:30]} 7. d3 {[%clk 0:02:47]}  d5 {[%clk 0:02:23]} 8. cxd5 {[%clk 0:02:40]}  Nxd5 {[%clk 0:02:24]} 9. Nbd2 {[%clk 0:02:35]}  Re8 {[%clk 0:02:20]} 10. e4 {[%clk 0:02:25]}  Nb6 {[%clk 0:02:14]} 11. h4 {[%clk 0:02:22]}  a5 {[%clk 0:02:03]} 12. bxa5 {[%clk 0:02:18]}  Nxa5 {[%clk 0:01:54]} 13. h5 {[%clk 0:02:18]}  Bg4 {[%clk 0:01:47]} 14. hxg6 {[%clk 0:02:14]}  hxg6 {[%clk 0:01:48]} 15. Be2 {[%clk 0:02:14]}  Nc6 {[%clk 0:01:17]} 16. Kf1 {[%clk 0:02:14]}  Na4 {[%clk 0:01:16]} 17. Rb1 {[%clk 0:02:10]}  Nc5 {[%clk 0:01:12]} 18. Qc2 {[%clk 0:02:03]}  Ne6 {[%clk 0:01:12]} 19. Kg2 {[%clk 0:02:03]}  Qd7 {[%clk 0:00:47]} 20. Rh4 {[%clk 0:02:00]}  Bh5 {[%clk 0:00:40]} 21. Rbh1 {[%clk 0:01:50]}  Bf6 {[%clk 0:00:39]} 22. Rxh5 {[%clk 0:01:45]}  gxh5 {[%clk 0:00:38]} 23. Rxh5 {[%clk 0:01:45]}  Rad8 {[%clk 0:00:37]} 24. Qc1 {[%clk 0:01:40]}  Ng7 {[%clk 0:00:34]} 25. Rh2 {[%clk 0:01:35]}  Qe7 {[%clk 0:00:25]} 26. Nc4 {[%clk 0:01:35]}  Ne6 {[%clk 0:00:22]} 27. Qh6 {[%clk 0:01:29]}  Ned4 {[%clk 0:00:19]} 28. Ne3 {[%clk 0:01:14]}  Bg7 {[%clk 0:00:04]} 29. Qh7+ {[%clk 0:01:13]}  Kf8 {[%clk 0:00:04]} 30. Bxd4 {[%clk 0:01:11]}  Nxd4 {[%clk 0:00:05]} 31. Nxd4 {[%clk 0:01:10]}  exd4 {[%clk 0:00:04]} 32. Nf5 {[%clk 0:01:11]}  Qf6 {[%clk 0:00:04]} 33. Bh5 {[%clk 0:00:59]}  Re5 {[%clk 0:00:03]} 34. Rh4 {[%clk 0:00:59]}  Rxf5 {[%clk 0:00:02]} 35. exf5 {[%clk 0:00:58]}  Qh6 {[%clk 0:00:01]} 36. Qxh6 {[%clk 0:00:56]}  Bxh6 {[%clk 0:00:02]} 37. Bxf7 {[%clk 0:00:57]}  Bg5 {[%clk 0:00:01]} 38. Rh5 {[%clk 0:00:55]}  Bf6 {[%clk 0:00:01]} 39. Be6 {[%clk 0:00:53]}  Ke7 {[%clk 0:00:01]} 40. f4 {[%clk 0:00:49]}  Rh8 {[%clk 0:00:01]} 41. Rxh8 {[%clk 0:00:49]}  Bxh8 {[%clk 0:00:02]} 42. g4 {[%clk 0:00:49]}  b5 {[%clk 0:00:01]} 43. Kf3 {[%clk 0:00:47]}  c5 {[%clk 0:00:01]} 44. Ke4 {[%clk 0:00:45]}  Kd6 {[%clk 0:00:01]} 45. g5 {[%clk 0:00:46]}  Bg7 {[%clk 0:00:01]} 46. Ba2 {[%clk 0:00:42]}  Bf8 {[%clk 0:00:01]} 47. f6 {[%clk 0:00:43]}  Kc6 {[%clk 0:00:01]} 48. g6 {[%clk 0:00:43]}  c4 {[%clk 0:00:02]} 49. g7 {[%clk 0:00:43]} 1-0


[Site "https://www.chess.com"]

[Event "Titled Tuesday Blitz January 17 Late 2023"]
[White "Zhigalko, Sergei"]
[Black "Sarana, Alexey"]
[WhiteFideId "13502956"]
[BlackFideId "24133795"]
[WhiteElo "2572"]
[BlackElo "2685"]
[Result "1-0"]
[Round "04"]
[TimeControl "180+2"]
[Date "2023.01.17"]
[WhiteClock "0:00:16"]
[BlackClock "0:00:05"]

1. e4 {[%clk 0:03:00]}  e5 {[%clk 0:03:00]} 2. Nf3 {[%clk 0:03:01]}  Nc6 {[%clk 0:03:01]} 3. Bb5 {[%clk 0:03:01]}  a6 {[%clk 0:03:01]} 4. Ba4 {[%clk 0:03:02]}  b5 {[%clk 0:03:02]} 5. Bb3 {[%clk 0:03:02]}  Na5 {[%clk 0:03:02]} 6. O-O {[%clk 0:02:59]}  d6 {[%clk 0:02:58]} 7. d4 {[%clk 0:02:55]}  exd4 {[%clk 0:02:58]} 8. Nxd4 {[%clk 0:02:53]}  Bb7 {[%clk 0:02:58]} 9. Bd2 {[%clk 0:02:29]}  Nxb3 {[%clk 0:02:56]} 10. Nxb3 {[%clk 0:02:26]}  Nf6 {[%clk 0:02:45]} 11. Nc3 {[%clk 0:02:09]}  Be7 {[%clk 0:02:44]} 12. Na5 {[%clk 0:02:05]}  Qc8 {[%clk 0:02:38]} 13. Re1 {[%clk 0:01:51]}  O-O {[%clk 0:02:37]} 14. Qf3 {[%clk 0:01:32]}  Re8 {[%clk 0:02:31]} 15. a3 {[%clk 0:01:18]}  Rb8 {[%clk 0:02:24]} 16. Nxb7 {[%clk 0:01:18]}  Qxb7 {[%clk 0:02:25]} 17. h3 {[%clk 0:01:16]}  Bf8 {[%clk 0:02:23]} 18. Bg5 {[%clk 0:01:15]}  Nd7 {[%clk 0:02:23]} 19. Rad1 {[%clk 0:01:05]}  Ne5 {[%clk 0:02:22]} 20. Qg3 {[%clk 0:01:04]}  Nc4 {[%clk 0:02:23]} 21. Bc1 {[%clk 0:01:04]}  Re6 {[%clk 0:02:20]} 22. b3 {[%clk 0:00:58]}  Rg6 {[%clk 0:02:16]} 23. Qd3 {[%clk 0:00:50]}  Ne5 {[%clk 0:02:14]} 24. Qe2 {[%clk 0:00:51]}  Qc8 {[%clk 0:01:27]} 25. Kh1 {[%clk 0:00:43]}  f5 {[%clk 0:01:04]} 26. f4 {[%clk 0:00:37]}  Nf7 {[%clk 0:01:04]} 27. Qd3 {[%clk 0:00:29]}  fxe4 {[%clk 0:01:00]} 28. Nxe4 {[%clk 0:00:28]}  Qf5 {[%clk 0:01:00]} 29. g4 {[%clk 0:00:25]}  Qd7 {[%clk 0:00:38]} 30. f5 {[%clk 0:00:25]}  Rh6 {[%clk 0:00:34]} 31. Bxh6 {[%clk 0:00:25]}  Nxh6 {[%clk 0:00:35]} 32. Qd5+ {[%clk 0:00:23]}  Kh8 {[%clk 0:00:35]} 33. Nc5 {[%clk 0:00:23]}  Qc8 {[%clk 0:00:34]} 34. Ne6 {[%clk 0:00:23]}  Ng8 {[%clk 0:00:34]} 35. Ng5 {[%clk 0:00:22]}  h6 {[%clk 0:00:30]} 36. Nf7+ {[%clk 0:00:22]}  Kh7 {[%clk 0:00:30]} 37. g5 {[%clk 0:00:23]}  hxg5 {[%clk 0:00:17]} 38. Nxg5+ {[%clk 0:00:24]}  Kh8 {[%clk 0:00:17]} 39. Nf7+ {[%clk 0:00:23]}  Kh7 {[%clk 0:00:18]} 40. Rd4 {[%clk 0:00:22]}  Qb7 {[%clk 0:00:08]} 41. Qxb7 {[%clk 0:00:18]}  Rxb7 {[%clk 0:00:09]} 42. Re8 {[%clk 0:00:18]}  g5 {[%clk 0:00:07]} 43. Nxg5+ {[%clk 0:00:15]}  Kg7 {[%clk 0:00:05]} 44. Ne6+ {[%clk 0:00:16]} 1-0


[Site "https://www.chess.com"]

[Event "Titled Tuesday Blitz January 17 Late 2023"]
[White "Bluebaum, Matthias"]
[Black "Baskakov, Egor"]
[WhiteFideId "24651516"]
[BlackFideId "24197866"]
[WhiteElo "2669"]
[BlackElo "2215"]
[Result "0-1"]
[Round "04"]
[TimeControl "180+2"]
[Date "2023.01.17"]
[WhiteClock "0:00:21"]
[BlackClock "0:00:15"]

1. d4 {[%clk 0:03:00]}  Nf6 {[%clk 0:02:54]} 2. c4 {[%clk 0:03:00]}  e6 {[%clk 0:02:52]} 3. Nc3 {[%clk 0:03:01]}  d5 {[%clk 0:02:53]} 4. cxd5 {[%clk 0:03:02]}  Nxd5 {[%clk 0:02:52]} 5. e4 {[%clk 0:03:02]}  Nxc3 {[%clk 0:02:53]} 6. bxc3 {[%clk 0:03:03]}  b6 {[%clk 0:02:53]} 7. Nf3 {[%clk 0:03:00]}  Bb7 {[%clk 0:02:54]} 8. Bd3 {[%clk 0:03:01]}  Nd7 {[%clk 0:02:54]} 9. e5 {[%clk 0:02:59]}  Be7 {[%clk 0:02:54]} 10. h4 {[%clk 0:02:55]}  h6 {[%clk 0:02:53]} 11. Be3 {[%clk 0:02:51]}  c5 {[%clk 0:02:50]} 12. Rh3 {[%clk 0:02:47]}  cxd4 {[%clk 0:02:48]} 13. cxd4 {[%clk 0:02:47]}  Rc8 {[%clk 0:02:47]} 14. Kf1 {[%clk 0:02:36]}  Bd5 {[%clk 0:02:44]} 15. Kg1 {[%clk 0:02:35]}  Nb8 {[%clk 0:02:42]} 16. Rg3 {[%clk 0:02:31]}  Kf8 {[%clk 0:02:39]} 17. h5 {[%clk 0:02:25]}  Nc6 {[%clk 0:02:32]} 18. a3 {[%clk 0:02:14]}  Na5 {[%clk 0:02:29]} 19. Nd2 {[%clk 0:02:14]}  Rc3 {[%clk 0:02:19]} 20. Qg4 {[%clk 0:02:09]}  Bg5 {[%clk 0:02:09]} 21. f4 {[%clk 0:02:03]}  Rxd3 {[%clk 0:02:02]} 22. fxg5 {[%clk 0:02:03]}  hxg5 {[%clk 0:02:01]} 23. Bxg5 {[%clk 0:01:24]}  Rxg3 {[%clk 0:02:02]} 24. Qxg3 {[%clk 0:01:24]}  Qc7 {[%clk 0:01:53]} 25. Qh4 {[%clk 0:01:25]}  Nb3 {[%clk 0:01:26]} 26. Nxb3 {[%clk 0:01:23]}  Bxb3 {[%clk 0:01:05]} 27. Rc1 {[%clk 0:01:22]}  Qd7 {[%clk 0:01:03]} 28. Rc3 {[%clk 0:00:50]}  Bd1 {[%clk 0:00:55]} 29. h6 {[%clk 0:00:39]}  Rh7 {[%clk 0:00:47]} 30. hxg7+ {[%clk 0:00:24]}  Kg8 {[%clk 0:00:47]} 31. Qe4 {[%clk 0:00:22]}  Rxg7 {[%clk 0:00:22]} 32. Bf6 {[%clk 0:00:22]}  Rg4 {[%clk 0:00:17]} 33. Qa8+ {[%clk 0:00:22]}  Kh7 {[%clk 0:00:17]} 34. Qh8+ {[%clk 0:00:16]}  Kg6 {[%clk 0:00:17]} 35. Qg7+ {[%clk 0:00:15]}  Kf5 {[%clk 0:00:17]} 36. Qh7+ {[%clk 0:00:16]}  Kf4 {[%clk 0:00:14]} 37. Qh6+ {[%clk 0:00:16]}  Ke4 {[%clk 0:00:13]} 38. Qe3+ {[%clk 0:00:16]}  Kd5 {[%clk 0:00:13]} 39. Rd3 {[%clk 0:00:09]}  Qa4 {[%clk 0:00:13]} 40. Qd2 {[%clk 0:00:04]}  Rxd4 {[%clk 0:00:12]} 41. Rxd4+ {[%clk 0:00:03]}  Qxd4+ {[%clk 0:00:13]} 42. Qxd4+ {[%clk 0:00:03]}  Kxd4 {[%clk 0:00:14]} 43. Kf2 {[%clk 0:00:03]}  b5 {[%clk 0:00:12]} 44. Kg3 {[%clk 0:00:03]}  a5 {[%clk 0:00:11]} 45. Bd8 {[%clk 0:00:03]}  b4 {[%clk 0:00:11]} 46. axb4 {[%clk 0:00:03]}  axb4 {[%clk 0:00:12]} 47. Be7 {[%clk 0:00:04]}  b3 {[%clk 0:00:11]} 48. Ba3 {[%clk 0:00:03]}  Kc3 {[%clk 0:00:12]} 49. Kf4 {[%clk 0:00:04]}  b2 {[%clk 0:00:12]} 50. Bxb2+ {[%clk 0:00:05]}  Kxb2 {[%clk 0:00:13]} 51. Kg5 {[%clk 0:00:06]}  Kc3 {[%clk 0:00:12]} 52. Kf6 {[%clk 0:00:06]}  Bh5 {[%clk 0:00:12]} 53. g4 {[%clk 0:00:07]}  Bg6 {[%clk 0:00:12]} 54. g5 {[%clk 0:00:08]}  Kd4 {[%clk 0:00:13]} 55. Ke7 {[%clk 0:00:08]}  Kxe5 {[%clk 0:00:13]} 56. Kf8 {[%clk 0:00:09]}  Kf5 {[%clk 0:00:13]} 57. Kg7 {[%clk 0:00:10]}  Kxg5 {[%clk 0:00:14]} 58. Kh8 {[%clk 0:00:11]}  e5 {[%clk 0:00:14]} 59. Kg7 {[%clk 0:00:12]}  e4 {[%clk 0:00:15]} 60. Kg8 {[%clk 0:00:13]}  e3 {[%clk 0:00:15]} 61. Kg7 {[%clk 0:00:14]}  e2 {[%clk 0:00:16]} 62. Kg8 {[%clk 0:00:15]}  e1=Q {[%clk 0:00:16]} 63. Kg7 {[%clk 0:00:16]}  f5 {[%clk 0:00:16]} 64. Kg8 {[%clk 0:00:16]}  f4 {[%clk 0:00:16]} 65. Kg7 {[%clk 0:00:17]}  f3 {[%clk 0:00:17]} 66. Kg8 {[%clk 0:00:18]}  f2 {[%clk 0:00:17]} 67. Kg7 {[%clk 0:00:19]}  f1=Q {[%clk 0:00:16]} 68. Kg8 {[%clk 0:00:20]}  Qe8+ {[%clk 0:00:16]} 69. Kg7 {[%clk 0:00:21]}  Qa1# {[%clk 0:00:15]} 0-1


[Site "https://www.chess.com"]

[Event "Titled Tuesday Blitz January 17 Late 2023"]
[White "Paichadze, Luka"]
[Black "Chigaev, Maksim"]
[WhiteFideId "13602934"]
[BlackFideId "4108116"]
[WhiteElo "2515"]
[BlackElo "2628"]
[Result "0-1"]
[Round "04"]
[TimeControl "180+2"]
[Date "2023.01.17"]
[WhiteClock "0:01:03"]
[BlackClock "0:01:17"]

1. e4 {[%clk 0:03:00]}  c5 {[%clk 0:03:00]} 2. b3 {[%clk 0:02:58]}  g6 {[%clk 0:02:56]} 3. Bb2 {[%clk 0:02:57]}  Nf6 {[%clk 0:02:57]} 4. Qf3 {[%clk 0:02:58]}  d6 {[%clk 0:02:55]} 5. Bb5+ {[%clk 0:02:57]}  Nbd7 {[%clk 0:02:55]} 6. Bxf6 {[%clk 0:02:57]}  exf6 {[%clk 0:02:55]} 7. Qd3 {[%clk 0:02:55]}  f5 {[%clk 0:02:47]} 8. exf5 {[%clk 0:02:53]}  Bg7 {[%clk 0:02:46]} 9. Nc3 {[%clk 0:02:53]}  O-O {[%clk 0:02:45]} 10. fxg6 {[%clk 0:02:52]}  hxg6 {[%clk 0:02:42]} 11. Nge2 {[%clk 0:02:46]}  Ne5 {[%clk 0:02:39]} 12. Qg3 {[%clk 0:02:45]}  a6 {[%clk 0:02:25]} 13. Bc4 {[%clk 0:02:43]}  Nxc4 {[%clk 0:02:17]} 14. bxc4 {[%clk 0:02:43]}  Be6 {[%clk 0:02:18]} 15. Rb1 {[%clk 0:02:32]}  Bxc4 {[%clk 0:02:15]} 16. d3 {[%clk 0:02:32]}  Bxa2 {[%clk 0:02:04]} 17. Rxb7 {[%clk 0:02:14]}  Qa5 {[%clk 0:02:02]} 18. Kd2 {[%clk 0:02:11]}  Rae8 {[%clk 0:01:52]} 19. Qxd6 {[%clk 0:02:02]}  Rxe2+ {[%clk 0:01:43]} 20. Kxe2 {[%clk 0:02:03]}  Qxc3 {[%clk 0:01:43]} 21. Rd1 {[%clk 0:02:00]}  Be6 {[%clk 0:01:30]} 22. Rb8 {[%clk 0:01:50]}  Qxc2+ {[%clk 0:01:23]} 23. Rd2 {[%clk 0:01:48]}  Qc3 {[%clk 0:01:24]} 24. Rxf8+ {[%clk 0:01:47]}  Bxf8 {[%clk 0:01:24]} 25. Qxa6 {[%clk 0:01:38]}  c4 {[%clk 0:01:23]} 26. d4 {[%clk 0:01:03]}  Bb4 {[%clk 0:01:17]} 0-1


[Site "https://www.chess.com"]